[Event "Titled Tuesday Blitz August 22 Late 2023"]
[White "Nihal Sarin"]
[Black "Keymer, Vincent"]
[WhiteFideId "25092340"]
[BlackFideId "12940690"]
[WhiteElo "3154"]
[BlackElo "2974"]
[Result "1-0"]
[Round "6"]
[TimeControl "180+1"]
[Date "2023.08.22"]
[WhiteClock "0:00:10"]
[BlackClock "0:00:00"]
[Board "5"]

1. b4 {[%clk 0:02:53]}  Nf6 {[%clk 0:02:59]} 2. Bb2 {[%clk 0:02:53]}  e6 {[%clk 0:02:59]} 3. a3 {[%clk 0:02:52]}  b6 {[%clk 0:02:58]} 4. Nf3 {[%clk 0:02:52]}  Bb7 {[%clk 0:02:58]} 5. g3 {[%clk 0:02:50]}  c5 {[%clk 0:02:55]} 6. bxc5 {[%clk 0:02:50]}  bxc5 {[%clk 0:02:56]} 7. Bg2 {[%clk 0:02:50]}  Be7 {[%clk 0:02:52]} 8. O-O {[%clk 0:02:49]}  O-O {[%clk 0:02:52]} 9. c4 {[%clk 0:02:50]}  Nc6 {[%clk 0:02:51]} 10. d3 {[%clk 0:02:50]}  Rb8 {[%clk 0:02:49]} 11. Nbd2 {[%clk 0:02:50]}  d6 {[%clk 0:02:50]} 12. Rb1 {[%clk 0:02:48]}  Nd7 {[%clk 0:02:50]} 13. Bc3 {[%clk 0:02:36]}  Qc7 {[%clk 0:02:34]} 14. h4 {[%clk 0:02:32]}  h6 {[%clk 0:02:34]} 15. Qa4 {[%clk 0:02:29]}  Ba8 {[%clk 0:02:34]} 16. Qc2 {[%clk 0:02:27]}  Rb6 {[%clk 0:02:34]} 17. Rxb6 {[%clk 0:02:18]}  axb6 {[%clk 0:02:34]} 18. Rb1 {[%clk 0:02:17]}  Bf6 {[%clk 0:02:29]} 19. Ne4 {[%clk 0:02:12]}  Be7 {[%clk 0:02:17]} 20. Ba1 {[%clk 0:02:12]}  Rb8 {[%clk 0:02:13]} 21. Qb2 {[%clk 0:02:08]}  Bf8 {[%clk 0:02:09]} 22. Nc3 {[%clk 0:02:08]}  Nce5 {[%clk 0:01:47]} 23. Nb5 {[%clk 0:02:07]}  Qd8 {[%clk 0:01:36]} 24. Nxe5 {[%clk 0:02:06]}  dxe5 {[%clk 0:01:35]} 25. Qd2 {[%clk 0:02:00]}  Bxg2 {[%clk 0:01:34]} 26. Kxg2 {[%clk 0:02:01]}  g6 {[%clk 0:01:35]} 27. Qe3 {[%clk 0:02:00]}  Bg7 {[%clk 0:01:35]} 28. Qf3 {[%clk 0:01:50]}  Qf8 {[%clk 0:00:53]} 29. Bc3 {[%clk 0:01:48]}  h5 {[%clk 0:00:45]} 30. a4 {[%clk 0:01:34]}  Ra8 {[%clk 0:00:44]} 31. Ra1 {[%clk 0:01:19]}  Ra6 {[%clk 0:00:23]} 32. a5 {[%clk 0:00:55]}  bxa5 {[%clk 0:00:24]} 33. Rxa5 {[%clk 0:00:55]}  Rxa5 {[%clk 0:00:21]} 34. Bxa5 {[%clk 0:00:56]}  Nf6 {[%clk 0:00:13]} 35. Qc6 {[%clk 0:00:33]}  Qe8 {[%clk 0:00:06]} 36. Qb7 {[%clk 0:00:12]}  Qd7 {[%clk 0:00:04]} 37. Qa8+ {[%clk 0:00:11]}  Kh7 {[%clk 0:00:05]} 38. Bc3 {[%clk 0:00:12]}  Ng4 {[%clk 0:00:04]} 39. Bd2 {[%clk 0:00:12]}  f6 {[%clk 0:00:04]} 40. f3 {[%clk 0:00:09]}  Nh6 {[%clk 0:00:00]} 41. Be3 {[%clk 0:00:10]} 1-0


[Site "https://www.chess.com"]

[Event "Titled Tuesday Blitz August 22 Late 2023"]
[White "Bluebaum, Matthias"]
[Black "Svane, Rasmus"]
[WhiteFideId "24651516"]
[BlackFideId "4657101"]
[WhiteElo "3032"]
[BlackElo "2990"]
[Result "1/2-1/2"]
[Round "6"]
[TimeControl "180+1"]
[Date "2023.08.22"]
[WhiteClock "0:00:30"]
[BlackClock "0:00:41"]
[Board "7"]

1. d4 {[%clk 0:03:00]}  Nf6 {[%clk 0:03:00]} 2. c4 {[%clk 0:03:01]}  e6 {[%clk 0:03:00]} 3. Nc3 {[%clk 0:03:01]}  Bb4 {[%clk 0:03:01]} 4. e3 {[%clk 0:03:02]}  O-O {[%clk 0:03:01]} 5. Bd2 {[%clk 0:03:03]}  d5 {[%clk 0:03:01]} 6. Nf3 {[%clk 0:03:03]}  Re8 {[%clk 0:03:01]} 7. Rc1 {[%clk 0:03:02]}  Nbd7 {[%clk 0:03:01]} 8. Qb3 {[%clk 0:02:54]}  Bxc3 {[%clk 0:02:45]} 9. Bxc3 {[%clk 0:02:55]}  b6 {[%clk 0:02:43]} 10. cxd5 {[%clk 0:02:55]}  Nxd5 {[%clk 0:02:41]} 11. Bd2 {[%clk 0:02:29]}  c5 {[%clk 0:02:29]} 12. Bb5 {[%clk 0:02:25]}  cxd4 {[%clk 0:02:29]} 13. Nxd4 {[%clk 0:02:22]}  Nc5 {[%clk 0:02:29]} 14. Qa3 {[%clk 0:02:16]}  Bd7 {[%clk 0:02:29]} 15. O-O {[%clk 0:02:04]}  Bxb5 {[%clk 0:02:27]} 16. Nxb5 {[%clk 0:02:05]}  Qd7 {[%clk 0:02:01]} 17. Nd4 {[%clk 0:02:06]}  e5 {[%clk 0:02:00]} 18. Nb3 {[%clk 0:02:06]}  Ne4 {[%clk 0:01:59]} 19. Rfd1 {[%clk 0:02:04]}  Qe6 {[%clk 0:01:49]} 20. Be1 {[%clk 0:02:04]}  h6 {[%clk 0:01:46]} 21. Nd2 {[%clk 0:01:57]}  Ndf6 {[%clk 0:01:41]} 22. Nxe4 {[%clk 0:01:55]}  Nxe4 {[%clk 0:01:42]} 23. f3 {[%clk 0:01:50]}  Nf6 {[%clk 0:01:32]} 24. e4 {[%clk 0:01:50]}  Qe7 {[%clk 0:01:19]} 25. Qxe7 {[%clk 0:01:47]}  Rxe7 {[%clk 0:01:20]} 26. Bb4 {[%clk 0:01:47]}  Rb7 {[%clk 0:01:17]} 27. Rc6 {[%clk 0:01:41]}  a5 {[%clk 0:01:15]} 28. Bc3 {[%clk 0:01:42]}  Re8 {[%clk 0:01:13]} 29. Be1 {[%clk 0:01:28]}  Nd7 {[%clk 0:01:07]} 30. Bf2 {[%clk 0:01:28]}  Kf8 {[%clk 0:01:03]} 31. b3 {[%clk 0:01:16]}  Ke7 {[%clk 0:01:02]} 32. Be3 {[%clk 0:01:14]}  Reb8 {[%clk 0:00:58]} 33. Bc1 {[%clk 0:01:11]}  Ke8 {[%clk 0:00:58]} 34. Bb2 {[%clk 0:01:05]}  f6 {[%clk 0:00:57]} 35. Ba3 {[%clk 0:01:03]}  Nf8 {[%clk 0:00:54]} 36. Rdd6 {[%clk 0:00:46]}  Ng6 {[%clk 0:00:53]} 37. Kf2 {[%clk 0:00:39]}  Kf7 {[%clk 0:00:53]} 38. Rd2 {[%clk 0:00:37]}  Ne7 {[%clk 0:00:53]} 39. Bxe7 {[%clk 0:00:36]}  Kxe7 {[%clk 0:00:52]} 40. Rdd6 {[%clk 0:00:36]}  Rd7 {[%clk 0:00:47]} 41. Rxb6 {[%clk 0:00:25]}  Rxb6 {[%clk 0:00:40]} 42. Rxb6 {[%clk 0:00:26]}  Rd2+ {[%clk 0:00:41]} 43. Kg3 {[%clk 0:00:27]}  Rxa2 {[%clk 0:00:41]} 44. Rb7+ {[%clk 0:00:27]}  Kf8 {[%clk 0:00:41]} 45. h4 {[%clk 0:00:28]}  h5 {[%clk 0:00:41]} 46. Ra7 {[%clk 0:00:27]}  Rb2 {[%clk 0:00:38]} 47. Rxa5 {[%clk 0:00:27]}  Rxb3 {[%clk 0:00:38]} 48. Ra8+ {[%clk 0:00:27]}  Kf7 {[%clk 0:00:39]} 49. Ra7+ {[%clk 0:00:28]}  Kg6 {[%clk 0:00:39]} 50. Ra8 {[%clk 0:00:28]}  Rb2 {[%clk 0:00:39]} 51. Ra7 {[%clk 0:00:29]}  Rb3 {[%clk 0:00:39]} 52. Ra8 {[%clk 0:00:29]}  Rb2 {[%clk 0:00:40]} 53. Ra7 {[%clk 0:00:30]}  Rb3 {[%clk 0:00:41]} 1/2-1/2


[Site "https://www.chess.com"]

[Event "Titled Tuesday Blitz August 22 Late 2023"]
[White "Naroditsky, Daniel"]
[Black "Cordova, Emilio"]
[WhiteFideId "2026961"]
[BlackFideId "3801497"]
[WhiteElo "3160"]
[BlackElo "2870"]
[Result "1-0"]
[Round "6"]
[TimeControl "180+1"]
[Date "2023.08.22"]
[WhiteClock "0:00:02"]
[BlackClock "0:00:02"]
[Board "8"]

1. e4 {[%clk 0:03:00]}  c5 {[%clk 0:02:54]} 2. Nf3 {[%clk 0:03:01]}  Nc6 {[%clk 0:02:55]} 3. Bb5 {[%clk 0:03:00]}  e6 {[%clk 0:02:55]} 4. O-O {[%clk 0:03:00]}  Nge7 {[%clk 0:02:55]} 5. d4 {[%clk 0:03:01]}  cxd4 {[%clk 0:02:54]} 6. Nxd4 {[%clk 0:03:02]}  Ng6 {[%clk 0:02:55]} 7. Nxc6 {[%clk 0:02:59]}  bxc6 {[%clk 0:02:54]} 8. Bd3 {[%clk 0:02:51]}  e5 {[%clk 0:02:55]} 9. Nd2 {[%clk 0:02:31]}  Be7 {[%clk 0:02:53]} 10. b3 {[%clk 0:02:27]}  O-O {[%clk 0:02:53]} 11. Bb2 {[%clk 0:02:28]}  d5 {[%clk 0:02:49]} 12. Kh1 {[%clk 0:02:23]}  f6 {[%clk 0:02:44]} 13. Re1 {[%clk 0:01:41]}  Be6 {[%clk 0:02:38]} 14. g3 {[%clk 0:01:39]}  Re8 {[%clk 0:02:37]} 15. Qf3 {[%clk 0:01:34]}  Qa5 {[%clk 0:02:35]} 16. Qe2 {[%clk 0:01:27]}  Bb4 {[%clk 0:02:32]} 17. Red1 {[%clk 0:01:25]}  Bc3 {[%clk 0:02:29]} 18. Bxc3 {[%clk 0:01:23]}  Qxc3 {[%clk 0:02:30]} 19. h4 {[%clk 0:01:19]}  Nf8 {[%clk 0:02:24]} 20. Qe3 {[%clk 0:01:15]}  Kh8 {[%clk 0:02:16]} 21. Kg1 {[%clk 0:01:08]}  Red8 {[%clk 0:02:11]} 22. Rac1 {[%clk 0:00:44]}  h6 {[%clk 0:02:09]} 23. Be2 {[%clk 0:00:41]}  Qxe3 {[%clk 0:02:08]} 24. fxe3 {[%clk 0:00:42]}  a5 {[%clk 0:02:05]} 25. a4 {[%clk 0:00:42]}  Rab8 {[%clk 0:01:51]} 26. Kf2 {[%clk 0:00:41]}  Bf7 {[%clk 0:01:48]} 27. exd5 {[%clk 0:00:39]}  cxd5 {[%clk 0:01:46]} 28. e4 {[%clk 0:00:40]}  d4 {[%clk 0:01:41]} 29. Bc4 {[%clk 0:00:40]}  Bh5 {[%clk 0:01:39]} 30. Be2 {[%clk 0:00:38]}  Bxe2 {[%clk 0:01:36]} 31. Kxe2 {[%clk 0:00:39]}  Ne6 {[%clk 0:01:36]} 32. Nc4 {[%clk 0:00:39]}  Nc5 {[%clk 0:01:36]} 33. Kf3 {[%clk 0:00:40]}  Ra8 {[%clk 0:01:23]} 34. g4 {[%clk 0:00:41]}  g5 {[%clk 0:01:21]} 35. h5 {[%clk 0:00:34]}  Kg7 {[%clk 0:01:21]} 36. Nb2 {[%clk 0:00:31]}  Rab8 {[%clk 0:01:20]} 37. Nc4 {[%clk 0:00:31]}  Ra8 {[%clk 0:01:17]} 38. Nb6 {[%clk 0:00:30]}  Ra6 {[%clk 0:01:17]} 39. Nd5 {[%clk 0:00:30]}  Rc6 {[%clk 0:01:03]} 40. c3 {[%clk 0:00:23]}  Nxb3 {[%clk 0:01:00]} 41. Rb1 {[%clk 0:00:24]}  Rb8 {[%clk 0:00:58]} 42. cxd4 {[%clk 0:00:18]}  Nd2+ {[%clk 0:00:58]} 43. Rxd2 {[%clk 0:00:18]}  Rxb1 {[%clk 0:00:58]} 44. dxe5 {[%clk 0:00:19]}  fxe5 {[%clk 0:00:57]} 45. Ne7 {[%clk 0:00:20]}  Rc3+ {[%clk 0:00:57]} 46. Kf2 {[%clk 0:00:17]}  Rcb3 {[%clk 0:00:52]} 47. Nf5+ {[%clk 0:00:17]}  Kf8 {[%clk 0:00:48]} 48. Rd8+ {[%clk 0:00:16]}  Kf7 {[%clk 0:00:48]} 49. Nxh6+ {[%clk 0:00:16]}  Ke7 {[%clk 0:00:48]} 50. Rd5 {[%clk 0:00:10]}  R1b2+ {[%clk 0:00:48]} 51. Kg1 {[%clk 0:00:09]}  Ke6 {[%clk 0:00:44]} 52. Nf5 {[%clk 0:00:03]}  Ra3 {[%clk 0:00:42]} 53. Rd6+ {[%clk 0:00:04]}  Kf7 {[%clk 0:00:42]} 54. Rd7+ {[%clk 0:00:04]}  Ke8 {[%clk 0:00:42]} 55. Rd1 {[%clk 0:00:04]}  Rxa4 {[%clk 0:00:03]} 56. h6 {[%clk 0:00:04]}  Kf7 {[%clk 0:00:03]} 57. h7 {[%clk 0:00:03]}  Rxe4 {[%clk 0:00:02]} 58. h8=Q {[%clk 0:00:02]} 1-0


[Site "https://www.chess.com"]

[Event "Titled Tuesday Blitz August 22 Late 2023"]
[White "So, Wesley"]
[Black "Durarbayli, Vasif"]
[WhiteFideId "5202213"]
[BlackFideId "13402935"]
[WhiteElo "3087"]
[BlackElo "2868"]
[Result "1-0"]
[Round "6"]
[TimeControl "180+1"]
[Date "2023.08.22"]
[WhiteClock "0:00:10"]
[BlackClock "0:00:00"]
[Board "9"]

1. b3 {[%clk 0:02:56]}  e5 {[%clk 0:02:59]} 2. Bb2 {[%clk 0:02:55]}  Nc6 {[%clk 0:02:59]} 3. e3 {[%clk 0:02:55]}  d5 {[%clk 0:02:51]} 4. Bb5 {[%clk 0:02:55]}  Bd6 {[%clk 0:02:51]} 5. Nf3 {[%clk 0:02:51]}  f6 {[%clk 0:02:41]} 6. c4 {[%clk 0:02:50]}  Ne7 {[%clk 0:02:38]} 7. d4 {[%clk 0:02:45]}  Bb4+ {[%clk 0:02:30]} 8. Bc3 {[%clk 0:02:40]}  Qd6 {[%clk 0:02:02]} 9. dxe5 {[%clk 0:02:27]}  fxe5 {[%clk 0:02:01]} 10. cxd5 {[%clk 0:02:22]}  Nxd5 {[%clk 0:01:51]} 11. Bxc6+ {[%clk 0:02:22]}  Qxc6 {[%clk 0:01:34]} 12. Bxb4 {[%clk 0:02:23]}  Nxb4 {[%clk 0:01:35]} 13. O-O {[%clk 0:02:22]}  O-O {[%clk 0:01:07]} 14. a3 {[%clk 0:02:13]}  Nd5 {[%clk 0:00:57]} 15. Nxe5 {[%clk 0:02:08]}  Qd6 {[%clk 0:00:54]} 16. Nc4 {[%clk 0:02:05]}  Qd8 {[%clk 0:00:47]} 17. Qd4 {[%clk 0:01:54]}  b5 {[%clk 0:00:40]} 18. Ne5 {[%clk 0:01:42]}  Bb7 {[%clk 0:00:40]} 19. Nd2 {[%clk 0:01:40]}  Qd6 {[%clk 0:00:34]} 20. Ne4 {[%clk 0:01:37]}  Qe7 {[%clk 0:00:31]} 21. Nc5 {[%clk 0:01:34]}  Rae8 {[%clk 0:00:26]} 22. Nxb7 {[%clk 0:01:23]}  Qxe5 {[%clk 0:00:26]} 23. Qxe5 {[%clk 0:01:24]}  Rxe5 {[%clk 0:00:27]} 24. Rac1 {[%clk 0:01:23]}  Rb8 {[%clk 0:00:23]} 25. Na5 {[%clk 0:01:22]}  Rb6 {[%clk 0:00:23]} 26. Rfd1 {[%clk 0:01:18]}  a6 {[%clk 0:00:23]} 27. Nc6 {[%clk 0:01:16]}  Re6 {[%clk 0:00:20]} 28. Nd4 {[%clk 0:01:04]}  Re8 {[%clk 0:00:20]} 29. b4 {[%clk 0:01:03]}  Rd6 {[%clk 0:00:19]} 30. Nf5 {[%clk 0:00:54]}  Rdd8 {[%clk 0:00:20]} 31. h4 {[%clk 0:00:41]}  g6 {[%clk 0:00:20]} 32. Nd4 {[%clk 0:00:40]}  Rd6 {[%clk 0:00:20]} 33. Rc6 {[%clk 0:00:39]}  Red8 {[%clk 0:00:18]} 34. Rdc1 {[%clk 0:00:38]}  Rxc6 {[%clk 0:00:14]} 35. Rxc6 {[%clk 0:00:39]}  Ra8 {[%clk 0:00:14]} 36. e4 {[%clk 0:00:38]}  Nf4 {[%clk 0:00:13]} 37. g3 {[%clk 0:00:33]}  Rd8 {[%clk 0:00:14]} 38. gxf4 {[%clk 0:00:25]}  Rxd4 {[%clk 0:00:13]} 39. f3 {[%clk 0:00:25]}  Rd3 {[%clk 0:00:13]} 40. Kf2 {[%clk 0:00:24]}  Rxa3 {[%clk 0:00:14]} 41. Rxc7 {[%clk 0:00:24]}  Rb3 {[%clk 0:00:12]} 42. Ra7 {[%clk 0:00:24]}  Rxb4 {[%clk 0:00:13]} 43. Rxa6 {[%clk 0:00:25]}  Rb1 {[%clk 0:00:10]} 44. Rb6 {[%clk 0:00:19]}  b4 {[%clk 0:00:11]} 45. h5 {[%clk 0:00:13]}  b3 {[%clk 0:00:10]} 46. hxg6 {[%clk 0:00:13]}  hxg6 {[%clk 0:00:11]} 47. Rxg6+ {[%clk 0:00:13]}  Kf7 {[%clk 0:00:11]} 48. Rb6 {[%clk 0:00:14]}  b2 {[%clk 0:00:11]} 49. Kg2 {[%clk 0:00:14]}  Ke7 {[%clk 0:00:11]} 50. f5 {[%clk 0:00:15]}  Kf7 {[%clk 0:00:11]} 51. Rb5 {[%clk 0:00:09]}  Kf6 {[%clk 0:00:10]} 52. Rb4 {[%clk 0:00:09]}  Ke5 {[%clk 0:00:09]} 53. Rb6 {[%clk 0:00:09]}  Kf4 {[%clk 0:00:02]} 54. f6 {[%clk 0:00:10]}  Ke3 {[%clk 0:00:00]} 55. f7 {[%clk 0:00:10]} 1-0


[Site "https://www.chess.com"]

[Event "Titled Tuesday Blitz August 22 Late 2023"]
[White "Duda, Jan-Krzysztof"]
[Black "Zierk, Steven"]
[WhiteFideId "1170546"]
[BlackFideId "2034255"]
[WhiteElo "3078"]
[BlackElo "2864"]
[Result "1-0"]
[Round "6"]
[TimeControl "180+1"]
[Date "2023.08.22"]
[WhiteClock "0:00:04"]
[BlackClock "0:00:00"]
[Board "11"]

1. e4 {[%clk 0:03:00]}  e6 {[%clk 0:03:00]} 2. d3 {[%clk 0:02:56]}  d5 {[%clk 0:03:00]} 3. Nd2 {[%clk 0:02:55]}  Nf6 {[%clk 0:03:00]} 4. g3 {[%clk 0:02:50]}  g6 {[%clk 0:03:00]} 5. Bg2 {[%clk 0:02:50]}  Bg7 {[%clk 0:03:01]} 6. e5 {[%clk 0:02:47]}  Nfd7 {[%clk 0:03:00]} 7. f4 {[%clk 0:02:45]}  c5 {[%clk 0:02:53]} 8. c3 {[%clk 0:02:45]}  Nc6 {[%clk 0:02:52]} 9. Ne2 {[%clk 0:02:45]}  f6 {[%clk 0:02:49]} 10. d4 {[%clk 0:02:45]}  Qb6 {[%clk 0:02:44]} 11. Nf3 {[%clk 0:02:44]}  O-O {[%clk 0:02:42]} 12. Rf1 {[%clk 0:02:22]}  a5 {[%clk 0:02:27]} 13. h4 {[%clk 0:02:20]}  a4 {[%clk 0:02:17]} 14. Bh3 {[%clk 0:02:20]}  Kh8 {[%clk 0:02:06]} 15. h5 {[%clk 0:02:15]}  gxh5 {[%clk 0:01:59]} 16. Rb1 {[%clk 0:02:09]}  a3 {[%clk 0:01:55]} 17. b4 {[%clk 0:01:56]}  cxd4 {[%clk 0:01:52]} 18. cxd4 {[%clk 0:01:57]}  Qb5 {[%clk 0:01:35]} 19. Rf2 {[%clk 0:01:34]}  Nxb4 {[%clk 0:01:17]} 20. Rb3 {[%clk 0:01:33]}  Qc4 {[%clk 0:01:13]} 21. Neg1 {[%clk 0:01:10]}  Nc6 {[%clk 0:00:55]} 22. Rc2 {[%clk 0:00:58]}  Qa4 {[%clk 0:00:49]} 23. Kf2 {[%clk 0:00:50]}  fxe5 {[%clk 0:00:45]} 24. Rxa3 {[%clk 0:00:50]}  Qxa3 {[%clk 0:00:40]} 25. Bxa3 {[%clk 0:00:50]}  Rxa3 {[%clk 0:00:41]} 26. dxe5 {[%clk 0:00:50]}  Nb4 {[%clk 0:00:33]} 27. Rd2 {[%clk 0:00:45]}  Nc5 {[%clk 0:00:33]} 28. Kg2 {[%clk 0:00:32]}  Ne4 {[%clk 0:00:32]} 29. Qc1 {[%clk 0:00:13]}  Rc3 {[%clk 0:00:28]} 30. Qb2 {[%clk 0:00:13]}  Nd3 {[%clk 0:00:25]} 31. Qa1 {[%clk 0:00:06]}  b5 {[%clk 0:00:18]} 32. Ne2 {[%clk 0:00:06]}  Ra3 {[%clk 0:00:14]} 33. Rc2 {[%clk 0:00:05]}  Nb4 {[%clk 0:00:12]} 34. Rb2 {[%clk 0:00:04]}  Nd3 {[%clk 0:00:12]} 35. Rb3 {[%clk 0:00:03]}  b4 {[%clk 0:00:09]} 36. Rxa3 {[%clk 0:00:03]}  bxa3 {[%clk 0:00:10]} 37. Ned4 {[%clk 0:00:04]}  Ndc5 {[%clk 0:00:08]} 38. Qc1 {[%clk 0:00:03]}  Ba6 {[%clk 0:00:05]} 39. Nxe6 {[%clk 0:00:03]}  Nxe6 {[%clk 0:00:05]} 40. Bxe6 {[%clk 0:00:04]}  Bc4 {[%clk 0:00:04]} 41. Qxa3 {[%clk 0:00:04]}  Re8 {[%clk 0:00:04]} 42. Nd4 {[%clk 0:00:04]}  h4 {[%clk 0:00:04]} 43. Qa4 {[%clk 0:00:04]}  Rb8 {[%clk 0:00:00]} 44. Qa7 {[%clk 0:00:04]} 1-0


[Site "https://www.chess.com"]

[Event "Titled Tuesday Blitz August 22 Late 2023"]
[White "Pakleza, Zbigniew"]
[Black "Bortnyk, Olexandr"]
[WhiteFideId "1119290"]
[BlackFideId "14120828"]
[WhiteElo "2841"]
[BlackElo "3032"]
[Result "1-0"]
[Round "6"]
[TimeControl "180+1"]
[Date "2023.08.22"]
[WhiteClock "0:00:15"]
[BlackClock "0:00:03"]
[Board "12"]

1. d4 {[%clk 0:03:00]}  Nf6 {[%clk 0:02:53]} 2. Nf3 {[%clk 0:03:01]}  b6 {[%clk 0:02:50]} 3. Bf4 {[%clk 0:03:01]}  Bb7 {[%clk 0:02:51]} 4. e3 {[%clk 0:03:02]}  d6 {[%clk 0:02:49]} 5. h3 {[%clk 0:03:01]}  g6 {[%clk 0:02:49]} 6. Be2 {[%clk 0:03:00]}  Bg7 {[%clk 0:02:50]} 7. O-O {[%clk 0:03:01]}  O-O {[%clk 0:02:50]} 8. Bh2 {[%clk 0:03:01]}  Nbd7 {[%clk 0:02:50]} 9. c3 {[%clk 0:03:00]}  Qe8 {[%clk 0:02:50]} 10. a4 {[%clk 0:03:00]}  a6 {[%clk 0:02:48]} 11. Na3 {[%clk 0:02:52]}  e5 {[%clk 0:02:47]} 12. Qb3 {[%clk 0:02:52]}  Qe7 {[%clk 0:02:47]} 13. Rfd1 {[%clk 0:02:52]}  Rad8 {[%clk 0:02:45]} 14. a5 {[%clk 0:02:45]}  b5 {[%clk 0:02:45]} 15. c4 {[%clk 0:02:45]}  c6 {[%clk 0:02:45]} 16. Rac1 {[%clk 0:02:40]}  exd4 {[%clk 0:02:26]} 17. exd4 {[%clk 0:02:13]}  Bh6 {[%clk 0:02:13]} 18. Rc2 {[%clk 0:02:02]}  Rfe8 {[%clk 0:02:13]} 19. Bf1 {[%clk 0:01:53]}  Ne4 {[%clk 0:02:07]} 20. Nb1 {[%clk 0:01:35]}  Ndf6 {[%clk 0:01:59]} 21. Nc3 {[%clk 0:01:29]}  Nxc3 {[%clk 0:01:56]} 22. bxc3 {[%clk 0:01:29]}  Bc8 {[%clk 0:01:51]} 23. cxb5 {[%clk 0:01:26]}  cxb5 {[%clk 0:01:52]} 24. c4 {[%clk 0:01:24]}  bxc4 {[%clk 0:01:45]} 25. Qxc4 {[%clk 0:01:23]}  Ne4 {[%clk 0:01:33]} 26. Re1 {[%clk 0:01:13]}  Qb7 {[%clk 0:01:18]} 27. Qc6 {[%clk 0:01:10]}  Bg7 {[%clk 0:00:37]} 28. Qxb7 {[%clk 0:01:06]}  Bxb7 {[%clk 0:00:38]} 29. Rc7 {[%clk 0:01:07]}  Rb8 {[%clk 0:00:28]} 30. Bf4 {[%clk 0:01:01]}  h6 {[%clk 0:00:23]} 31. Be3 {[%clk 0:00:48]}  g5 {[%clk 0:00:22]} 32. Rb1 {[%clk 0:00:47]}  Bd5 {[%clk 0:00:22]} 33. Rxb8 {[%clk 0:00:48]}  Rxb8 {[%clk 0:00:22]} 34. Bxa6 {[%clk 0:00:49]}  Ra8 {[%clk 0:00:21]} 35. Rc8+ {[%clk 0:00:43]}  Rxc8 {[%clk 0:00:16]} 36. Bxc8 {[%clk 0:00:44]}  Nc3 {[%clk 0:00:16]} 37. a6 {[%clk 0:00:41]}  Nb5 {[%clk 0:00:16]} 38. Bb7 {[%clk 0:00:39]}  Bc4 {[%clk 0:00:07]} 39. d5 {[%clk 0:00:35]}  f5 {[%clk 0:00:04]} 40. a7 {[%clk 0:00:31]}  Nxa7 {[%clk 0:00:05]} 41. Bxa7 {[%clk 0:00:31]}  Kf7 {[%clk 0:00:05]} 42. Nd4 {[%clk 0:00:28]}  Kf6 {[%clk 0:00:03]} 43. Ne6 {[%clk 0:00:27]}  Kf7 {[%clk 0:00:02]} 44. Nxg7 {[%clk 0:00:26]}  Kxg7 {[%clk 0:00:03]} 45. Bd4+ {[%clk 0:00:27]}  Kf7 {[%clk 0:00:03]} 46. g3 {[%clk 0:00:23]}  h5 {[%clk 0:00:03]} 47. f4 {[%clk 0:00:22]}  g4 {[%clk 0:00:03]} 48. h4 {[%clk 0:00:20]}  Ke7 {[%clk 0:00:03]} 49. Kf2 {[%clk 0:00:20]}  Bb3 {[%clk 0:00:03]} 50. Bc6 {[%clk 0:00:18]}  Bc2 {[%clk 0:00:03]} 51. Ke3 {[%clk 0:00:17]}  Be4 {[%clk 0:00:02]} 52. Bb6 {[%clk 0:00:17]}  Bb1 {[%clk 0:00:02]} 53. Kd4 {[%clk 0:00:17]}  Ba2 {[%clk 0:00:02]} 54. Kc3 {[%clk 0:00:16]}  Bb1 {[%clk 0:00:02]} 55. Kb4 {[%clk 0:00:16]}  Bd3 {[%clk 0:00:03]} 56. Ka5 {[%clk 0:00:16]}  Be2 {[%clk 0:00:03]} 57. Bc7 {[%clk 0:00:15]}  Bc4 {[%clk 0:00:03]} 58. Kb6 {[%clk 0:00:15]}  Ba2 {[%clk 0:00:04]} 59. Bb8 {[%clk 0:00:15]}  Bb3 {[%clk 0:00:03]} 60. Kc7 {[%clk 0:00:15]}  Bc4 {[%clk 0:00:04]} 61. Ba7 {[%clk 0:00:15]}  Bb3 {[%clk 0:00:04]} 62. Bd4 {[%clk 0:00:16]}  Ba2 {[%clk 0:00:03]} 63. Bc3 {[%clk 0:00:16]}  Bxd5 {[%clk 0:00:03]} 64. Bxd5 {[%clk 0:00:16]}  Kf8 {[%clk 0:00:04]} 65. Kxd6 {[%clk 0:00:16]}  Ke8 {[%clk 0:00:05]} 66. Ke6 {[%clk 0:00:15]}  Kf8 {[%clk 0:00:03]} 67. Kxf5 {[%clk 0:00:15]} 1-0


[Site "https://www.chess.com"]

[Event "Titled Tuesday Blitz August 22 Late 2023"]
[White "Klukin, Kirill"]
[Black "Martinez Alcantara, Jose Eduardo"]
[WhiteFideId "24199273"]
[BlackFideId "3805662"]
[WhiteElo "2830"]
[BlackElo "3017"]
[Result "0-1"]
[Round "6"]
[TimeControl "180+1"]
[Date "2023.08.22"]
[WhiteClock "0:00:00"]
[BlackClock "0:00:07"]
[Board "13"]

1. d4 {[%clk 0:03:00]}  Nf6 {[%clk 0:03:00]} 2. Nf3 {[%clk 0:03:00]}  e6 {[%clk 0:03:00]} 3. e3 {[%clk 0:03:00]}  b6 {[%clk 0:03:00]} 4. Bd3 {[%clk 0:03:01]}  Bb7 {[%clk 0:03:00]} 5. O-O {[%clk 0:03:02]}  g6 {[%clk 0:03:01]} 6. c4 {[%clk 0:03:02]}  Bg7 {[%clk 0:03:01]} 7. b3 {[%clk 0:03:02]}  O-O {[%clk 0:03:02]} 8. Bb2 {[%clk 0:03:03]}  d6 {[%clk 0:03:03]} 9. Nc3 {[%clk 0:03:03]}  Nbd7 {[%clk 0:03:04]} 10. e4 {[%clk 0:02:59]}  c5 {[%clk 0:03:04]} 11. Bc2 {[%clk 0:02:53]}  a6 {[%clk 0:03:02]} 12. Qd2 {[%clk 0:02:51]}  Qc7 {[%clk 0:03:00]} 13. Rad1 {[%clk 0:02:51]}  Rad8 {[%clk 0:03:00]} 14. d5 {[%clk 0:02:43]}  e5 {[%clk 0:03:01]} 15. Ne1 {[%clk 0:02:43]}  Ne8 {[%clk 0:02:56]} 16. Ne2 {[%clk 0:02:41]}  Bc8 {[%clk 0:02:55]} 17. Nd3 {[%clk 0:02:40]}  b5 {[%clk 0:02:53]} 18. f4 {[%clk 0:02:33]}  exf4 {[%clk 0:02:48]} 19. Bxg7 {[%clk 0:02:32]}  Kxg7 {[%clk 0:02:49]} 20. Nexf4 {[%clk 0:02:33]}  Nef6 {[%clk 0:02:44]} 21. Rde1 {[%clk 0:02:32]}  Rde8 {[%clk 0:02:43]} 22. Qc3 {[%clk 0:02:31]}  Kg8 {[%clk 0:02:41]} 23. Nf2 {[%clk 0:01:55]}  Ne5 {[%clk 0:02:38]} 24. N4d3 {[%clk 0:01:55]}  Nfd7 {[%clk 0:02:36]} 25. Re3 {[%clk 0:01:39]}  Qd8 {[%clk 0:02:24]} 26. Rg3 {[%clk 0:01:33]}  Qf6 {[%clk 0:02:12]} 27. Nxe5 {[%clk 0:01:23]}  Qxe5 {[%clk 0:02:12]} 28. Qd2 {[%clk 0:01:21]}  Nf6 {[%clk 0:01:52]} 29. Kh1 {[%clk 0:01:08]}  Kg7 {[%clk 0:01:18]} 30. Rf3 {[%clk 0:00:58]}  Qd4 {[%clk 0:01:14]} 31. Qf4 {[%clk 0:00:41]}  Qe5 {[%clk 0:00:56]} 32. Qh4 {[%clk 0:00:34]}  Ng8 {[%clk 0:00:46]} 33. Nd3 {[%clk 0:00:28]}  Qe7 {[%clk 0:00:45]} 34. Qg3 {[%clk 0:00:27]}  f6 {[%clk 0:00:42]} 35. Nf4 {[%clk 0:00:26]}  Qe5 {[%clk 0:00:40]} 36. Qf2 {[%clk 0:00:24]}  Nh6 {[%clk 0:00:37]} 37. h3 {[%clk 0:00:24]}  Nf7 {[%clk 0:00:29]} 38. Nd3 {[%clk 0:00:23]}  Qd4 {[%clk 0:00:29]} 39. Rxf6 {[%clk 0:00:21]}  Qxf2 {[%clk 0:00:29]} 40. R1xf2 {[%clk 0:00:22]}  bxc4 {[%clk 0:00:29]} 41. bxc4 {[%clk 0:00:22]}  Rxe4 {[%clk 0:00:27]} 42. Nxc5 {[%clk 0:00:20]}  Re1+ {[%clk 0:00:27]} 43. Kh2 {[%clk 0:00:16]}  dxc5 {[%clk 0:00:27]} 44. Rc6 {[%clk 0:00:13]}  Re7 {[%clk 0:00:21]} 45. Rxc5 {[%clk 0:00:13]}  Bb7 {[%clk 0:00:19]} 46. Ba4 {[%clk 0:00:13]}  Nd6 {[%clk 0:00:15]} 47. Rb2 {[%clk 0:00:13]}  h5 {[%clk 0:00:11]} 48. Bc6 {[%clk 0:00:13]}  Rc8 {[%clk 0:00:09]} 49. Rb6 {[%clk 0:00:09]}  Rcc7 {[%clk 0:00:09]} 50. Ra5 {[%clk 0:00:09]}  Nxc4 {[%clk 0:00:08]} 51. Rxb7 {[%clk 0:00:04]}  Rxb7 {[%clk 0:00:08]} 52. Ra4 {[%clk 0:00:04]}  Nb6 {[%clk 0:00:07]} 53. Rxa6 {[%clk 0:00:04]}  Rb8 {[%clk 0:00:06]} 54. d6 {[%clk 0:00:04]}  Re6 {[%clk 0:00:07]} 55. Ra7+ {[%clk 0:00:04]}  Kf6 {[%clk 0:00:07]} 56. Rd7 {[%clk 0:00:00]}  Nxd7 {[%clk 0:00:07]} 0-1


[Site "https://www.chess.com"]